fUSD/lending_fUSD_20251103
["ID","MTS","AMOUNT","RATE_DAILY","PERIOD"]
[392944429,1762163196255,-175.8033976,0.00030136,120]
[392944430,1762163196321,-174.18765007,0.00030136,120]
[392944431,1762163196388,-258.1222173,0.00030136,120]
[392944432,1762163196451,-500.0,0.00030136,120]
[392944433,1762163196518,-196.97210477,0.00030136,120]
[392944434,1762163196583,-370.24750253,0.00030136,120]
[392944435,1762163196642,-334.03278875,0.00030136,120]
[392944436,1762163196700,-500.0,0.00030136,120]
[392944437,1762163196766,-227.60788711,0.00030136,120]
[392944438,1762163196833,-500.0,0.00030136,120]
[392944439,1762163196906,-427.39367727,0.00030136,120]
[392944440,1762163196989,-177.36193011,0.00030136,120]
[392944441,1762163197067,-420.18130109,0.00030136,120]
[392944442,1762163197141,-286.71134461,0.00030136,120]
[392944443,1762163197209,-258.91658001,0.00030136,120]
[392944444,1762163197275,-500.0,0.00030136,120]
[392944445,1762163197336,-346.69127204,0.00030136,120]
[392944446,1762163197395,-470.81406497,0.00030136,120]
[392944447,1762163197462,-500.0,0.00030136,120]
[392944448,1762163197533,-345.94093767,0.00030136,120]
[392944449,1762163197600,-424.44779415,0.00030136,120]
[392944450,1762163197661,-374.60326898,0.00030136,120]
[392944451,1762163197724,-324.35288358,0.00030136,120]
[392944452,1762163197785,-500.0,0.00030136,120]
[392944453,1762163197847,-277.35018753,0.00030136,120]
[392944454,1762163197906,-252.17366201,0.00030136,120]
[392944455,1762163197966,-249.99649909,0.00030136,120]
[392944456,1762163198027,-317.67947417,0.00030136,120]
[392944457,1762163198092,-500.0,0.00030136,120]
[392944458,1762163198165,-359.97541204,0.00030136,120]
[392944459,1762163198237,-442.37862197,0.00030136,120]
[392944460,1762163198308,-279.10562386,0.00030136,120]
[392944461,1762163198376,-407.7054409,0.00030136,120]
[392944462,1762163198450,-195.8764793,0.00030136,120]
[392944463,1762163198526,-415.80347452,0.00030136,120]
[392944464,1762163198601,-500.0,0.00030136,120]
[392944465,1762163198675,-168.60906116,0.00030136,120]
[392944466,1762163198754,-455.15587834,0.00030136,120]
[392944467,1762163198836,-185.35442542,0.00030136,120]
[392944468,1762163198915,-227.55344689,0.00030136,120]
[392944469,1762163198989,-500.0,0.00030136,120]
[392944470,1762163199058,-500.0,0.00030136,120]
[392944471,1762163199128,-500.0,0.00030136,120]
[392944472,1762163199202,-500.0,0.00030136,120]
[392944473,1762163199274,-199.23016603,0.00030136,120]
[392944474,1762163199346,-500.0,0.00030136,120]
[392944475,1762163199416,-176.71089455,0.00030136,120]
[392944476,1762163199485,-500.0,0.00030136,120]
[392944477,1762163199556,-307.38596823,0.00030136,120]
[392944478,1762163199624,-500.0,0.00030136,120]
[392944479,1762163199686,-375.75754513,0.00030136,120]
[392944480,1762163199747,-500.0,0.00030136,120]
[392944481,1762163199979,-332.55877747,0.00030136,120]
[392944482,1762163200049,-660.32,0.00030136,120]
[392944483,1762163200116,-428.82671609,0.00030136,120]
[392944484,1762163200182,-500.0,0.00030136,120]
[392944485,1762163200255,-285.40016509,0.00030136,120]
[392944486,1762163200330,-500.0,0.00030136,120]
[392944487,1762163200404,-208.16128479,0.00030136,120]
[392944488,1762163200480,-322.61791075,0.00030136,120]
[392944489,1762163200548,-500.0,0.00030136,120]
[392944490,1762163200616,-351.28513969,0.00030136,120]
[392944491,1762163200684,-417.58911661,0.00030136,120]
[392944492,1762163200757,-305.22788929,0.00030136,120]
[392944493,1762163200825,-403.49246872,0.00030136,120]
[392944494,1762163200897,-352.39314533,0.00030136,120]
[392944495,1762163200964,-428.65202467,0.00030136,120]
[392944496,1762163201031,-500.0,0.00030136,120]
[392944497,1762163201095,-300.0,0.00030136,120]
[392944498,1762163201154,-500.0,0.00030136,120]
[392944499,1762163201217,-500.0,0.00030136,120]
[392944500,1762163201282,-500.0,0.00030136,120]
[392944501,1762163201348,-500.0,0.00030136,120]
[392944502,1762163201421,-330.99369102,0.00030136,120]
[392944503,1762163201495,-500.0,0.00030136,120]
[392944504,1762163201570,-269.25654591,0.00030136,120]
[392944505,1762163201643,-500.0,0.00030136,120]
[392944506,1762163201712,-448.45304725,0.00030136,120]
[392944507,1762163201778,-277.72693034,0.00030136,120]
[392944508,1762163201841,-339.05099343,0.00030136,120]
[392944509,1762163201904,-441.69574441,0.00030136,120]
[392944510,1762163201967,-199.42922325,0.00030136,120]
[392944511,1762163202032,-321.17910089,0.00030136,120]
[392944512,1762163202095,-310.67528023,0.00030136,120]
[392944513,1762163202155,-318.24345233,0.00030136,120]
[392944514,1762163202217,-335.04586822,0.00030136,120]
[392944515,1762163202284,-500.0,0.00030136,120]
[392944516,1762163202352,-228.14369834,0.00030136,120]
[392944517,1762163202422,-500.0,0.00030136,120]
[392944518,1762163202495,-500.0,0.00030136,120]
[392944519,1762163202565,-284.08779503,0.00030136,120]
[392944520,1762163202634,-725.61,0.00030136,120]
[392944521,1762163202702,-500.0,0.00030136,120]
[392944522,1762163202770,-411.71058573,0.00030136,120]
[392944523,1762163202837,-414.33427249,0.00030136,120]
[392944524,1762163202906,-158.84476139,0.00030136,120]
[392944525,1762163202974,-239.79212596,0.00030136,120]
[392944526,1762163203039,-229.37190368,0.00030136,120]
[392944527,1762163203102,-169.73207824,0.00030136,120]
[392944528,1762163203164,-479.63592788,0.00030136,120]
[392944529,1762163203224,-500.0,0.00030136,120]
[392944530,1762163203288,-500.0,0.00030136,120]
[392944531,1762163203358,-500.18,0.00030136,120]
[392944532,1762163203426,-500.0,0.00030136,120]
[392944533,1762163203492,-500.0,0.00030136,120]
[392944534,1762163203554,-387.15506686,0.00030136,120]
[392944535,1762163203629,-500.0,0.00030136,120]
[392944536,1762163203697,-500.0,0.00030136,120]
[392944537,1762163203761,-261.43275768,0.00030136,120]
[392944538,1762163203822,-453.3356825,0.00030136,120]
[392944539,1762163203888,-500.0,0.00030136,120]
[392944540,1762163203956,-250.15820481,0.00030136,120]
[392944541,1762163204024,-401.05776807,0.00030136,120]
[392944542,1762163204094,-451.89894414,0.00030136,120]
[392944543,1762163204168,-500.0,0.00030136,120]
[392944544,1762163204242,-500.0,0.00030136,120]
[392944545,1762163204311,-704.11,0.00030136,120]
[392944546,1762163204379,-500.0,0.00030136,120]
[392944547,1762163204447,-364.01374888,0.00030136,120]
[392944548,1762163204520,-525.40053998,0.00030136,120]
[392944549,1762163204596,-500.0,0.00030136,120]
[392944550,1762163204673,-620.2,0.00030136,120]
[392944551,1762163204746,-1624.05,0.00030136,120]
[392944552,1762163204819,-500.0,0.00030136,120]
[392944553,1762163204895,-500.0,0.00030136,120]
[392944554,1762163204976,-447.85518664,0.00030136,120]
[392944555,1762163205052,-583.63323423,0.00030136,120]
[392944556,1762163205127,-500.0,0.00030136,120]
[392944557,1762163205202,-240.0,0.00030136,120]
[392944558,1762163205274,-368.01056453,0.00030136,120]
[392944559,1762163205342,-492.5052898,0.00030136,120]
[392944560,1762163205407,-500.0,0.00030136,120]
[392944561,1762163205472,-173.25717624,0.00030136,120]
[392944562,1762163205540,-500.0,0.00030136,120]
[392944563,1762163205601,-500.0,0.00030136,120]
[392944564,1762163205662,-500.0,0.00030136,120]
[392944565,1762163205722,-500.0,0.00030136,120]
[392944566,1762163205792,-500.0,0.00030136,120]
[392944567,1762163205858,-500.0,0.00030136,120]
[392944568,1762163205928,-500.0,0.00030136,120]
[392944569,1762163205996,-500.0,0.00030136,120]
[392944570,1762163206067,-500.0,0.00030136,120]
[392944571,1762163206136,-500.0,0.00030136,120]
[392944572,1762163206205,-502.82880962,0.00030136,120]
[392944573,1762163206279,-500.0,0.00030136,120]
[392944574,1762163206347,-377.91285487,0.00030136,120]
[392944575,1762163206410,-234.01418117,0.00030136,120]
[392944576,1762163206473,-500.0,0.00030136,120]
[392944577,1762163206537,-500.0,0.00030136,120]
[392944578,1762163206597,-500.0,0.00030136,120]
[392944579,1762163206656,-500.0,0.00030136,120]
[392944580,1762163206717,-500.0,0.00030136,120]
[392944581,1762163206779,-500.0,0.00030136,120]
[392944582,1762163206845,-504.97021001,0.00030136,120]
[392944583,1762163206906,-500.0,0.00030136,120]
[392944584,1762163206967,-500.0,0.00030136,120]
[392944585,1762163207272,-500.0,0.00030136,120]
[392944586,1762163207342,-500.0,0.00030136,120]
[392944587,1762163207410,-500.0,0.00030136,120]
[392944588,1762163207477,-500.0,0.00030136,120]
[392944589,1762163207544,-514.77380973,0.00030136,120]
[392944590,1762163207607,-500.0,0.00030136,120]
[392944591,1762163207666,-500.0,0.00030136,120]
[392944592,1762163207725,-500.0,0.00030136,120]
[392944593,1762163207793,-500.0,0.00030136,120]
[392944594,1762163207857,-500.0,0.00030136,120]
[392944595,1762163207926,-500.0,0.00030136,120]
[392944596,1762163207991,-500.0,0.00030136,120]
[392944597,1762163208056,-520.14087381,0.00030136,120]
[392944598,1762163208116,-433.99564471,0.00030136,120]
[392944599,1762163208179,-500.0,0.00030136,120]
[392944600,1762163208240,-500.0,0.00030136,120]
[392944601,1762163208301,-570.62,0.00030136,120]
[392944602,1762163208363,-500.0,0.00030136,120]
[392944603,1762163208425,-500.0,0.00030136,120]
[392944604,1762163208490,-500.0,0.00030136,120]
[392944605,1762163208555,-318.06967707,0.00030136,120]
[392944606,1762163208616,-500.0,0.00030136,120]
[392944607,1762163208676,-500.0,0.00030136,120]
[392944608,1762163208738,-500.0,0.00030136,120]
[392944609,1762163208798,-313.3544241,0.00030136,120]
[392944610,1762163208858,-500.0,0.00030136,120]
[392944611,1762163208919,-500.0,0.00030136,120]
[392944612,1762163208982,-500.0,0.00030136,120]
[392944613,1762163209044,-500.0,0.00030136,120]
[392944614,1762163209102,-500.0,0.00030136,120]
[392944615,1762163209160,-500.0,0.00030136,120]
[392944616,1762163209216,-202.65433799,0.00030136,120]
[392944617,1762163209277,-500.0,0.00030136,120]
[392944618,1762163209336,-500.0,0.00030136,120]
[392944619,1762163209393,-500.0,0.00030136,120]
[392944620,1762163209450,-500.0,0.00030136,120]
[392944621,1762163209513,-500.0,0.00030136,120]
[392944622,1762163209576,-221.95404501,0.00030136,120]
[392944623,1762163209639,-500.0,0.00030136,120]
[392944624,1762163209701,-500.0,0.00030136,120]
[392944625,1762163209763,-426.35909874,0.00030136,120]
[392944626,1762163209823,-500.0,0.00030136,120]
[392944627,1762163209882,-546.84916224,0.00030136,120]
[392944628,1762163209940,-505.78651861,0.00030136,120]
[392944629,1762163209999,-500.0,0.00030136,120]
[392944630,1762163210055,-395.51069541,0.00030136,120]
[392944631,1762163210110,-500.0,0.00030136,120]
[392944632,1762163210163,-383.82809241,0.00030136,120]
[392944633,1762163210213,-343.82161781,0.00030136,120]
[392944634,1762163210269,-500.0,0.00030136,120]
[392944635,1762163210326,-260.72732122,0.00030136,120]
[392944636,1762163210381,-500.0,0.00030136,120]
[392944637,1762163210436,-216.41704508,0.00030136,120]
[392944638,1762163210491,-223.15552635,0.00030136,120]
[392944639,1762163210544,-500.0,0.00030136,120]
[392944640,1762163210596,-248.35291276,0.00030136,120]
[392944641,1762163210651,-540.2,0.00030136,120]
[392944642,1762163210705,-393.6597369,0.00030136,120]
[392944643,1762163210760,-500.0,0.00030136,120]
[392944644,1762163210813,-500.0,0.00030136,120]
[392944645,1762163210866,-362.00039346,0.00030136,120]
[392944646,1762163210919,-370.69042946,0.00030136,120]
[392944647,1762163210972,-500.0,0.00030136,120]
[392944648,1762163211025,-271.20710571,0.00030136,120]
[392944649,1762163211077,-500.0,0.00030136,120]
[392944650,1762163211127,-500.0,0.00030136,120]
[392944651,1762163211178,-308.23317172,0.00030136,120]
[392944652,1762163211237,-450.26861816,0.00030136,120]
[392944653,1762163211298,-294.17602564,0.00030136,120]
[392944654,1762163211361,-500.0,0.00030136,120]
[392944655,1762163211416,-221.33959555,0.00030136,120]
[392944656,1762163211469,-500.0,0.00030136,120]
[392944657,1762163211521,-181.75436567,0.00030136,120]
[392944658,1762163211575,-500.0,0.00030136,120]
[392944659,1762163211632,-379.63425982,0.00030136,120]
[392944660,1762163211685,-500.0,0.00030136,120]
[392944661,1762163211739,-500.0,0.00030136,120]
[392944662,1762163211793,-500.0,0.00030136,120]
[392944663,1762163211851,-500.0,0.00030136,120]
[392944664,1762163211912,-500.0,0.00030136,120]
[392944665,1762163211971,-286.56715063,0.00030136,120]
[392944666,1762163212028,-500.0,0.00030136,120]
[392944667,1762163212082,-505.03834272,0.00030136,120]
[392944668,1762163212134,-500.0,0.00030136,120]
[392944669,1762163212187,-500.0,0.00030136,120]
[392944670,1762163212238,-500.0,0.00030136,120]
[392944671,1762163212290,-500.0,0.00030136,120]
[392944672,1762163212343,-162.6902386,0.00030136,120]
[392944673,1762163212398,-500.0,0.00030136,120]
[392944674,1762163212460,-501.57284539,0.00030136,120]
[392944675,1762163212524,-177.87623422,0.00030136,120]
[392944676,1762163212586,-500.0,0.00030136,120]
[392944677,1762163212652,-268.70741202,0.00030136,120]
[392944678,1762163212716,-569.76816577,0.00030136,120]
[392944679,1762163212777,-500.0,0.00030136,120]
[392944680,1762163212838,-500.0,0.00030136,120]
[392944681,1762163212901,-432.60996758,0.00030136,120]
[392944682,1762163212963,-500.0,0.00030136,120]
[392944683,1762163213022,-232.47435039,0.00030136,120]
[392944684,1762163213084,-500.0,0.00030136,120]
[392944685,1762163213144,-500.0,0.00030136,120]
[392944686,1762163213201,-500.0,0.00030136,120]
[392944687,1762163213395,-500.0,0.00030136,120]
[392944688,1762163213497,-500.0,0.00030136,120]
[392944689,1762163213559,-500.0,0.00030136,120]
[392944690,1762163213621,-341.41550849,0.00030136,120]
[392944691,1762163213681,-262.07306207,0.00030136,120]
[392944692,1762163213742,-500.0,0.00030136,120]
[392944693,1762163213803,-500.0,0.00030136,120]
[392944694,1762163213862,-500.0,0.00030136,120]
[392944695,1762163213925,-515.71253466,0.00030136,120]
[392944696,1762163213992,-186.88091276,0.00030136,120]
[392944697,1762163214056,-500.0,0.00030136,120]
[392944698,1762163214118,-500.0,0.00030136,120]
[392944699,1762163214178,-500.0,0.00030136,120]
[392944700,1762163214238,-529.709769,0.00030136,120]
[392944701,1762163214301,-500.0,0.00030136,120]
[392944702,1762163214360,-444.28836495,0.00030136,120]
[392944703,1762163214420,-171.44395524,0.00030136,120]
[392944704,1762163214482,-559.78025538,0.00030136,120]
[392944705,1762163214549,-500.0,0.00030136,120]
[392944706,1762163214610,-500.0,0.00030136,120]
[392944707,1762163214666,-165.80863683,0.00030136,120]
[392944708,1762163214722,-500.0,0.00030136,120]
[392944709,1762163214780,-482.36152751,0.00030136,120]
[392944710,1762163214837,-500.0,0.00030136,120]
[392944711,1762163214899,-435.40570024,0.00030136,120]
[392944712,1762163214960,-577.45,0.00030136,120]
[392944713,1762163215025,-500.0,0.00030136,120]
[392944714,1762163215088,-500.0,0.00030136,120]
[392944715,1762163215146,-531.97876766,0.00030136,120]
[392944716,1762163215209,-500.0,0.00030136,120]
[392944717,1762163215276,-445.40306422,0.00030136,120]
[392944718,1762163215344,-500.0,0.00030136,120]
[392944719,1762163215412,-500.0,0.00030136,120]
[392944720,1762163215475,-500.0,0.00030136,120]
[392944721,1762163215538,-428.73154229,0.00030136,120]
[392944722,1762163215596,-193.93645343,0.00030136,120]
[392944723,1762163215653,-500.0,0.00030136,120]
[392944724,1762163215709,-439.32552785,0.00030136,120]
[392944725,1762163215766,-500.0,0.00030136,120]
[392944726,1762163215822,-500.0,0.00030136,120]
[392944727,1762163215881,-500.0,0.00030136,120]
[392944728,1762163215939,-369.87942303,0.00030136,120]
[392944729,1762163215999,-338.10212772,0.00030136,120]
[392944730,1762163216060,-428.25839332,0.00030136,120]
[392944731,1762163216117,-500.0,0.00030136,120]
[392944732,1762163216173,-504.50729688,0.00030136,120]
[392944733,1762163216228,-391.86316951,0.00030136,120]
[392944734,1762163216284,-176.31035264,0.00030136,120]
[392944735,1762163216343,-500.0,0.00030136,120]
[392944736,1762163216404,-204.02448484,0.00030136,120]
[392944737,1762163216465,-500.0,0.00030136,120]
[392944738,1762163216528,-500.0,0.00030136,120]
[392944739,1762163216590,-500.0,0.00030136,120]
[392944740,1762163216650,-500.0,0.00030136,120]
[392944741,1762163216711,-282.53803353,0.00030136,120]
[392944742,1762163216769,-542.0949093,0.00030136,120]
[392944743,1762163216829,-500.0,0.00030136,120]
[392944744,1762163216893,-500.0,0.00030136,120]
[392944745,1762163216953,-594.66,0.00030136,120]
[392944746,1762163217014,-468.05660807,0.00030136,120]
[392944747,1762163217073,-441.69252692,0.00030136,120]
[392944748,1762163217130,-591.73948179,0.00030136,120]
[392944749,1762163217189,-520.09,0.00030136,120]
[392944750,1762163217249,-167.39607964,0.00030136,120]
[392944751,1762163217310,-500.0,0.00030136,120]
[392944752,1762163217375,-500.0,0.00030136,120]
[392944753,1762163217437,-500.0,0.00030136,120]
[392944754,1762163217502,-500.0,0.00030136,120]
[392944755,1762163217567,-500.0,0.00030136,120]
[392944756,1762163217626,-500.0,0.00030136,120]
[392944757,1762163217689,-491.33938162,0.00030136,120]
[392944758,1762163217755,-291.32170263,0.00030136,120]
[392944759,1762163217823,-500.0,0.00030136,120]
[392944760,1762163217889,-187.04941601,0.00030136,120]
[392944761,1762163217949,-325.10252639,0.00030136,120]
[392944762,1762163218007,-442.55139843,0.00030136,120]
[392944763,1762163218065,-218.44632982,0.00030136,120]
[392944764,1762163218131,-419.27801289,0.00030136,120]
[392944765,1762163218192,-293.5897171,0.00030136,120]
[392944766,1762163218252,-306.16104347,0.00030136,120]
[392944767,1762163218310,-359.9128381,0.00030136,120]
[392944768,1762163218365,-500.0,0.00030136,120]
[392944769,1762163218420,-500.0,0.00030136,120]
[392944770,1762163218476,-500.0,0.00030136,120]
[392944771,1762163218532,-500.0,0.00030136,120]
[392944772,1762163218586,-290.2785528,0.00030136,120]
[392944773,1762163218642,-500.0,0.00030136,120]
[392944774,1762163218698,-500.0,0.00030136,120]
[392944775,1762163218762,-500.0,0.00030136,120]
[392944776,1762163218824,-500.0,0.00030136,120]
[392944777,1762163218884,-502.36115041,0.00030136,120]
[392944778,1762163218943,-500.0,0.00030136,120]
[392944779,1762163219001,-314.69076501,0.00030136,120]
[392944780,1762163219056,-160.82516885,0.00030136,120]
[392944781,1762163219112,-270.39439454,0.00030136,120]
[392944782,1762163219168,-481.89686136,0.00030136,120]
[392944783,1762163219224,-500.0,0.00030136,120]
[392944784,1762163219282,-510.95988764,0.00030136,120]
[392944785,1762163219345,-500.0,0.00030136,120]
[392944786,1762163219408,-424.01294689,0.00030136,120]
[392944787,1762163219470,-515.40343798,0.00030136,120]
[392944788,1762163219545,-197.32338526,0.00030136,120]
[392944789,1762163219611,-500.0,0.00030136,120]
[392944790,1762163219673,-500.0,0.00030136,120]
[392944791,1762163219903,-257.30379253,0.00030136,120]
[392944792,1762163219970,-500.0,0.00030136,120]
[392944793,1762163220041,-287.80369383,0.00030136,120]
[392944794,1762163220120,-500.0,0.00030136,120]
[392944795,1762163220207,-357.21597613,0.00030136,120]
[392944796,1762163220287,-500.0,0.00030136,120]
[392944797,1762163220362,-505.83029955,0.00030136,120]
[392944798,1762163220438,-500.0,0.00030136,120]
[392944799,1762163220512,-500.0,0.00030136,120]
[392944800,1762163220582,-500.0,0.00030136,120]
[392944801,1762163220647,-500.0,0.00030136,120]
[392944802,1762163220711,-174.52980803,0.00030136,120]
[392944803,1762163220774,-500.0,0.00030136,120]
[392944804,1762163220849,-500.0,0.00030136,120]
[392944805,1762163220923,-482.50059276,0.00030136,120]
[392944806,1762163220993,-413.09438723,0.00030136,120]
[392944807,1762163221057,-303.66264285,0.00030136,120]
[392944808,1762163221119,-500.0,0.00030136,120]
[392944809,1762163221178,-500.0,0.00030136,120]
[392944810,1762163221235,-500.0,0.00030136,120]
[392944811,1762163221297,-500.0,0.00030136,120]
[392944812,1762163221355,-443.69213741,0.00030136,120]
[392944813,1762163221412,-502.62550991,0.00030136,120]
[392944814,1762163221476,-500.0,0.00030136,120]
[392944815,1762163221543,-504.75235872,0.00030136,120]
[392944816,1762163221605,-500.0,0.00030136,120]
[392944817,1762163221664,-500.0,0.00030136,120]
[392944818,1762163221725,-500.64148587,0.00030136,120]
[392944819,1762163221788,-500.0,0.00030136,120]
[392944820,1762163221853,-500.0,0.00030136,120]
[392944821,1762163221914,-500.0,0.00030136,120]
[392944822,1762163221979,-500.0,0.00030136,120]
[392944823,1762163222042,-500.0,0.00030136,120]
[392944824,1762163222104,-211.00837791,0.00030136,120]
[392944825,1762163222166,-220.42058823,0.00030136,120]
[392944826,1762163222226,-352.6252967,0.00030136,120]
[392944827,1762163222286,-422.84457575,0.00030136,120]
[392944828,1762163222353,-502.78784102,0.00030136,120]
[392944829,1762163222421,-500.0,0.00030136,120]
[392944830,1762163222507,-500.0,0.00030136,120]
[392944831,1762163222582,-388.32469813,0.00030136,120]
[392944832,1762163222653,-501.99180171,0.00030136,120]
[392944833,1762163222716,-500.0,0.00030136,120]
[392944834,1762163222786,-500.0,0.00030136,120]
[392944835,1762163222862,-500.0,0.00030136,120]
[392944836,1762163222933,-500.0,0.00030136,120]
[392944837,1762163222999,-316.31067773,0.00030136,120]
[392944838,1762163223079,-500.0,0.00030136,120]
[392944839,1762163223155,-508.21587276,0.00030136,120]
[392944840,1762163223228,-443.61441259,0.00030136,120]
[392944841,1762163223304,-500.0,0.00030136,120]
[392944842,1762163223383,-500.0,0.00030136,120]
[392944843,1762163223463,-504.20757806,0.00030136,120]
[392944844,1762163223545,-196.22787826,0.00030136,120]
[392944845,1762163223620,-212.47519514,0.00030136,120]
[392944846,1762163223692,-500.0,0.00030136,120]
[392944847,1762163223769,-500.0,0.00030136,120]
[392944848,1762163223846,-432.74346858,0.00030136,120]
[392944849,1762163223930,-274.16683264,0.00030136,120]
[392944850,1762163224011,-500.0,0.00030136,120]
[392944851,1762163224091,-500.0,0.00030136,120]
[392944852,1762163224171,-374.66716002,0.00030136,120]
[392944853,1762163224249,-489.98461105,0.00030136,120]
[392944854,1762163224329,-500.0,0.00030136,120]
[392944855,1762163224407,-500.0,0.00030136,120]
[392944856,1762163224488,-500.0,0.00030136,120]
[392944857,1762163224573,-500.0,0.00030136,120]
[392944858,1762163224653,-256.17096602,0.00030136,120]
[392944859,1762163224734,-500.0,0.00030136,120]
[392944860,1762163224815,-310.8350137,0.00030136,120]
[392944861,1762163224893,-500.0,0.00030136,120]
[392944862,1762163224972,-503.75939867,0.00030136,120]
[392944863,1762163225051,-500.0,0.00030136,120]
[392944864,1762163225128,-524.17531417,0.00030136,120]
[392944865,1762163225205,-331.77587992,0.00030136,120]
[392944866,1762163225284,-500.0,0.00030136,120]
[392944867,1762163225364,-237.48438429,0.00030136,120]
[392944868,1762163225441,-503.62574908,0.00030136,120]
[392944869,1762163225519,-262.91178022,0.00030136,120]
[392944870,1762163225593,-506.21255842,0.00030136,120]
[392944871,1762163225666,-500.0,0.00030136,120]
[392944872,1762163226968,500.0,0.00030136,120]
[392944873,1762163227544,315.44090849,0.00030136,120]
[392944874,1762163228327,-50000.0,0.00036973,30]
[392944875,1762163228401,-50000.0,0.00036973,31]
[392944876,1762163228472,-200.0,0.00036973,30]
[392944877,1762163228544,-300.0,0.00036973,30]
[392944878,1762163228618,-662.91443575,0.00036973,30]
[392944879,1762163228691,-534.62682497,0.00036973,30]
[392944880,1762163228766,-744.56641568,0.00036973,30]
[392944881,1762163228842,-944.71623738,0.00036973,30]
[392944882,1762163228920,-916.74762166,0.00036973,30]
[392944883,1762163228994,-855.31709057,0.00036973,30]
[392944884,1762163229070,-773.44051845,0.00036973,30]
[392944885,1762163229143,-1325.39287596,0.00036973,30]
[392944886,1762163229218,-296.08530834,0.00036973,30]
[392944887,1762163229293,-849.90310206,0.00036973,30]
[392944888,1762163229368,-897.7719411,0.00036973,30]
[392944889,1762163229441,-906.5461107,0.00036973,30]
[392944890,1762163229516,-1100.37181135,0.00036973,30]
[392944891,1762163229592,-976.47849424,0.00036973,30]
[392944892,1762163229666,-1008.94775562,0.00036973,30]
[392944893,1762163229740,-736.15095244,0.00036973,30]
[392944894,1762163229812,-629.61819463,0.00036973,30]
[392944895,1762163229884,-205.05020715,0.00036973,30]
[392944896,1762163229956,-1062.03790891,0.00036973,30]
[392944897,1762163230024,-997.0,0.00036973,30]
[392944898,1762163230096,-927.53157709,0.00036973,30]
[392944899,1762163230167,-660.37044595,0.00036973,30]
[392944900,1762163230239,-194.56510163,0.00036973,30]
[392944901,1762163230313,-2448.0738003,0.00036973,30]
[392944902,1762163230386,-191.33466297,0.00036973,30]
[392944903,1762163230462,-1708.51566229,0.00036973,30]
[392944904,1762163230538,-1985.82069499,0.00036973,30]
[392944905,1762163230610,-1527.63302484,0.00036973,30]
[392944906,1762163230682,-1891.71,0.00036973,31]
[392944907,1762163230757,-240.63927543,0.00036973,30]
[392944908,1762163230831,-5050.0,0.00036973,36]
[392944909,1762163230908,-14217.91288121,0.00036973,30]
[392944910,1762163230983,-11386.41075186,0.00036973,30]
[392944911,1762163231054,-1365384.37417947,0.00036973,30]
[392944912,1762163231129,-152015.73216313,0.00036973,30]
[392944913,1762163231201,-34500.99969426,0.00036973,30]
[392944914,1762163231273,-31224.63202408,0.00036973,30]
[392944915,1762163231347,-15839.38252876,0.00036973,30]
[392944916,1762163231422,-50000.0,0.00036973,30]
[392944917,1762163231497,-13953.06022687,0.00036973,30]
[392944918,1762163231571,-33145.31023565,0.00036973,30]
[392944919,1762163231643,-13864.10331305,0.00036973,30]
[392944920,1762163231937,-27851.9287131,0.00036973,30]
[392944921,1762163232014,-39320.73009078,0.00036973,30]
[392944922,1762163232091,-50000.0,0.00036973,32]
[392944923,1762163232163,-455.35152979,0.00036973,120]
[392944924,1762163232231,-512.77848702,0.00036973,60]
[392944925,1762163232302,-500.0,0.00036973,120]
[392944926,1762163232380,-500.0,0.00036973,120]
[392944927,1762163232456,-500.0,0.00036973,120]
[392944928,1762163232531,-500.0,0.00036973,120]